fUST/lending_fUST_20240303
["ID","MTS","AMOUNT","RATE_DAILY","PERIOD"]
[316384346,1709459446380,-172.61837232,0.0002255,2]
[316384348,1709459446392,-3929.36297917,0.00022997,2]
[316384350,1709459446401,-500.0,0.00022998,2]
[316384353,1709459446414,-1433.28,0.00022998,2]
[316384355,1709459446424,-269.25261581,0.00022999,2]
[316384357,1709459446433,-1433.28,0.00022999,2]
[316384359,1709459446443,-155.0,0.00023,2]
[316384361,1709459446454,-190.38238203,0.00023899,2]
[316384363,1709459446465,-5000.0,0.00023932,5]
[316384365,1709459446474,-16.22055425,0.00023998,2]
[316384367,1709459446485,-155.64963055,0.00023998,2]
[316384369,1709459446494,-463.58098066,0.00023998,2]
[316384371,1709459446504,-535.34090482,0.00023998,2]
[316384373,1709459446514,-291.21960429,0.00023998,2]
[316384374,1709459446523,-155.42225802,0.00023998,2]
[316384375,1709459446533,-184.71398844,0.00023998,2]
[316384376,1709459446543,-227.46156816,0.00023998,2]
[316384377,1709459446553,-274.0342241,0.00023998,2]
[316384378,1709459446562,-155.28113613,0.00023998,2]
[316384379,1709459446571,-214.46763555,0.00023998,2]
[316384380,1709459446580,-1079.68830364,0.00023998,2]
[316384381,1709459446592,-1433.28,0.00023998,2]
[316384382,1709459446601,-428.5709436,0.00023998,2]
[316384383,1709459446610,-1000.0,0.00023999,6]
[316384384,1709459446623,-239.01,0.00023999,2]
[316384385,1709459446632,-239.01,0.00023999,2]
[316384386,1709459446641,-1433.28,0.00023999,2]
[316384387,1709459446650,-1433.28,0.00023999,2]
[316384388,1709459446659,-1433.28,0.00023999,2]
[316384389,1709459446669,-1433.28,0.00023999,2]
[316384390,1709459446678,-1433.28,0.00023999,2]
[316384391,1709459446687,-1433.28,0.00023999,2]
[316384392,1709459446696,-1433.28,0.00023999,2]
[316384393,1709459446705,-1433.28,0.00023999,2]
[316384394,1709459446714,-1433.28,0.00023999,2]
[316384395,1709459446723,-1433.28,0.00023999,2]
[316384396,1709459446732,-1433.28,0.00023999,2]
[316384397,1709459446741,-1433.28,0.00023999,2]
[316384398,1709459446751,-1433.28,0.00023999,2]
[316384399,1709459446760,-1433.28,0.00023999,2]
[316384400,1709459446769,-1433.28,0.00023999,2]
[316384401,1709459446778,-1433.28,0.00023999,2]
[316384402,1709459446787,-1433.28,0.00023999,2]
[316384403,1709459446796,-1433.28,0.00023999,2]
[316384404,1709459446805,-1433.28,0.00023999,2]
[316384405,1709459446814,-1433.28,0.00023999,2]
[316384406,1709459446823,-1433.28140864,0.00023999,2]
[316384407,1709459446832,-22277.10909346,0.00024,5]
[316384408,1709459446845,-3668.100001,0.00024,5]
[316384409,1709459446857,-3428.9727547,0.00024,5]
[316385048,1709460363734,-184.5743335,0.00019999,2]
[316385049,1709460363769,-165.0,0.00019999,2]
[316385050,1709460363801,-2595.08936365,0.00019999,2]
[316385051,1709460363835,-58034.66861435,0.00019999,2]
[316385052,1709460363868,-36441.60570211,0.0002,2]
[316385054,1709460385493,214.97835459,0.000189,2]
[316385130,1709460632124,-155.00310006,0.00018899,2]
[316385132,1709460632133,-686.08024275,0.000189,2]
[316385134,1709460632143,-1620.38854569,0.00019628,2]
[316385136,1709460632157,-6458.92874712,0.00019628,2]
[316385706,1709460638144,-1520.86020869,0.00019628,2]
[316385708,1709460638156,-155.00310006,0.00020352,2]
[316385710,1709460638166,-237.980335,0.00020353,2]
[316385712,1709460638175,-2595.08936365,0.00020481,2]
[316385714,1709460638184,-587.4710624,0.00020482,2]
[316385716,1709460638193,-14412.8843427,0.00020546,2]
[316385719,1709460638205,-517.25981545,0.00020546,2]
[316386016,1709460641050,-416.64966704,0.00020546,2]
[316386074,1709460643167,-1295.0,0.00020546,2]
[316386191,1709460646373,-17801.7980187,0.00020546,2]
[316386197,1709460646769,-23591.07677046,0.00020546,2]
[316386198,1709460646780,-500.0,0.00020547,2]
[316386199,1709460646790,-500.0,0.00020547,2]
[316386200,1709460646801,-500.0,0.00020547,2]
[316386201,1709460646812,-500.0,0.00020547,2]
[316386202,1709460646822,-500.21882076,0.00020547,2]
[316386203,1709460646832,-500.0,0.00020547,2]
[316386204,1709460646841,-500.0,0.00020547,2]
[316386205,1709460646851,-500.0,0.00020547,2]
[316386206,1709460646861,-500.0,0.00020547,2]
[316386207,1709460646870,-500.0,0.00020547,2]
[316386208,1709460646880,-500.0,0.00020547,2]
[316386209,1709460646890,-414.10438581,0.00020547,2]
[316386210,1709460646903,-74.50561419,0.00020547,2]
[316386211,1709460646915,-237.74010528,0.00020547,2]
[316386212,1709460646925,-500.0,0.00020547,2]
[316386213,1709460646935,-28.965685,0.00020547,2]
[316386214,1709460646947,-471.034315,0.00020547,2]
[316386215,1709460646956,-500.0,0.00020547,2]
[316386216,1709460646965,-247.877675,0.00020547,2]
[316386217,1709460646978,-252.122325,0.00020547,2]
[316386218,1709460646988,-500.0,0.00020547,2]
[316386219,1709460646997,-500.0,0.00020547,2]
[316386220,1709460647007,-500.0,0.00020547,2]
[316386221,1709460647017,-500.0,0.00020547,2]
[316386222,1709460647026,-500.0,0.00020547,2]
[316386223,1709460647035,-500.0,0.00020547,2]
[316386224,1709460647044,-500.0,0.00020547,2]
[316386225,1709460647053,-500.0,0.00020547,2]
[316386226,1709460647063,-500.0,0.00020547,2]
[316386227,1709460647072,-500.0,0.00020547,2]
[316386228,1709460647082,-500.0,0.00020547,2]
[316386229,1709460647091,-500.0,0.00020547,2]
[316386230,1709460647099,-235.21,0.00020547,2]
[316386231,1709460647108,-500.0,0.00020547,2]
[316386232,1709460647117,-500.0,0.00020547,2]
[316386233,1709460647126,-500.0,0.00020547,2]
[316386234,1709460647137,-500.0,0.00020547,2]
[316386235,1709460647146,-500.0,0.00020547,2]
[316386236,1709460647157,-500.0,0.00020547,2]
[316386238,1709460647167,-500.0,0.00020547,2]
[316386239,1709460647176,-500.0,0.00020547,2]
[316386241,1709460647186,-330.46,0.00020547,2]
[316386243,1709460647195,-500.0,0.00020547,2]
[316386245,1709460647205,-500.0,0.00020547,2]
[316386246,1709460647214,-500.0,0.00020547,2]
[316386248,1709460647224,-500.0,0.00020547,2]
[316386249,1709460647233,-630.81,0.00020547,2]
[316386250,1709460647243,-17154.93552362,0.00021,2]
[316386251,1709460647252,-184.5743335,0.00021894,2]
[316386252,1709460647261,-177.43482931,0.00021898,2]
[316386254,1709460647270,-304.7,0.00021998,2]
[316386255,1709460647279,-500.0,0.00021998,2]
[316386256,1709460647289,-500.0,0.00021998,2]
[316386257,1709460647298,-500.0,0.00021998,2]
[316386258,1709460647308,-310.35862199,0.00021998,2]
[316386259,1709460647317,-327.18,0.00021998,2]
[316386261,1709460647327,-248.76029493,0.00021998,2]
[316386263,1709460647337,-748.62,0.00021998,2]
[316386265,1709460647347,-500.0,0.00021998,2]
[316386266,1709460647356,-3929.36297917,0.00021999,2]
[316386268,1709460647367,-5065.86332238,0.00022,5]
[316386270,1709460647378,-2390.351605,0.00022812,2]
[316386271,1709460647388,-152.3097276,0.00022928,2]
[316386272,1709460647399,-1053.68847178,0.00022933,5]
[316386273,1709460647411,-1165.53800728,0.0002294,5]
[316386274,1709460647421,-13031.36718256,0.00023,2]
[316386363,1709461832287,-155.00310006,0.00019176,2]
[316386364,1709461832297,-2595.08936365,0.0001919,2]
[316386365,1709461832306,-256.952126,0.00019191,2]
[316386366,1709461832315,-177.43482931,0.00020447,2]
[316386367,1709461832325,-20614.86864583,0.00020546,2]
[316386368,1709461832351,-521.57034808,0.00020546,2]
[316386393,1709461838300,-184.5743335,0.00019175,2]
[316386394,1709461838310,-36898.22962044,0.00020546,2]
[316386395,1709461838319,-228.11247072,0.00020547,2]
[316386396,1709461838328,-500.54594438,0.00020547,2]
[316386397,1709461838337,-500.0,0.00020547,2]
[316386399,1709461838346,-491.854724,0.00020547,2]
[316386400,1709461838355,-142.68290696,0.00020547,2]
[316386401,1709461838368,-357.66664701,0.00020547,2]
[316386402,1709461838377,-502.57767823,0.00020547,2]
[316386403,1709461838386,-283.54663088,0.00020547,2]
[316386404,1709461838397,-632.52,0.00020547,2]
[316386405,1709461838410,-500.0,0.00020547,2]
[316386407,1709461838419,-500.0,0.00020547,2]
[316386409,1709461838428,-388.8101085,0.00020547,2]
[316386411,1709461838443,-111.1898915,0.00020547,2]
[316386413,1709461838452,-331.95530334,0.00020547,2]
[316386415,1709461838462,-92.3702871,0.00020547,2]
[316386443,1709461841256,-407.6297129,0.00020547,2]
[316386444,1709461841265,-500.0,0.00020547,2]
[316386445,1709461841274,-503.24699288,0.00020547,2]
[316386446,1709461841284,-503.55455983,0.00020547,2]
[316386447,1709461841293,-500.0,0.00020547,2]
[316386448,1709461841302,-500.0,0.00020547,2]
[316386449,1709461841311,-391.67509102,0.0002084,2]
[316386450,1709461841321,-122.09189101,0.00021998,2]
[316386451,1709461841334,-272.35399167,0.00021998,2]
[316386452,1709461841343,-500.0,0.00021998,2]
[316386453,1709461841352,-500.0,0.00021999,2]
[316386454,1709461841362,-500.0,0.00021999,2]
[316386455,1709461841371,-500.0,0.00021999,2]
[316386456,1709461841380,-402.2752997,0.00021999,2]
[316386470,1709461843332,-97.7247003,0.00021999,2]
[316386471,1709461843342,-500.0,0.00021999,2]
[316386472,1709461843350,-300.2752997,0.00021999,2]
[316386473,1709461843362,-199.7247003,0.00021999,2]
[316386474,1709461843371,-155.0,0.000229,2]
[316386475,1709461843380,-153.0,0.00022904,2]
[316386476,1709461843389,-605.76,0.00022998,2]
[316386477,1709461843398,-500.0,0.00022998,2]
[316386478,1709461843409,-500.0,0.00022998,2]
[316386479,1709461843418,-500.0,0.00022998,2]
[316386480,1709461843427,-500.0,0.00022999,2]
[316386481,1709461843437,-500.0,0.00022999,2]
[316386482,1709461843446,-493.20746956,0.00022999,2]
[316386483,1709461843455,-500.0,0.00022999,2]
[316386484,1709461843465,-1875.91240297,0.00023,2]
[316386485,1709461843474,-686.08024275,0.00023,2]
[316386486,1709461843483,-1453.78257082,0.00023,2]
[316386594,1709463038621,-184.5743335,0.00019207,2]
[316386597,1709463038632,-155.00310006,0.00019211,2]
[316386598,1709463038642,-817.06578824,0.00019212,2]
[316386601,1709463038655,-4616.11665979,0.00019212,2]
[316386603,1709463038667,-5102.63504133,0.00019212,2]
[316386867,1709463041376,-3076.09464761,0.00019212,2]
[316387063,1709463043574,-518.40000002,0.00019212,2]
[316387372,1709463046613,-4874.9870463,0.00019212,2]
[316391975,1709463308686,256.952126,0.00018409,2]
[316391976,1709463378218,501.83445219,0.00018409,2]
[316391977,1709463394015,504.39428901,0.00018409,2]
[316391979,1709463427675,20881.9368914,0.0001874,2]
[316392133,1709464241625,-155.00310006,0.00018899,2]
[316392136,1709464241634,-261.11672735,0.000189,2]
[316392138,1709464241644,-1306.96846111,0.00019,2]
[316392140,1709464241653,-151.38001891,0.0002,2]
[316392142,1709464241662,-155.00310006,0.00020535,2]
[316392144,1709464241671,-414.96810622,0.00020547,2]
[316392146,1709464241681,-502.24252423,0.00020547,2]
[316392148,1709464241691,-370.22610382,0.00020547,2]
[316392149,1709464241700,-533.27295771,0.00020547,2]
[316392151,1709464241710,-500.0,0.00020547,2]
[316392153,1709464241719,-500.0,0.00020547,2]
[316392155,1709464241728,-500.0,0.00020547,2]
[316392157,1709464241737,-500.0,0.00020547,2]
[316392159,1709464241746,-500.0,0.00020547,2]
[316392162,1709464241755,-500.0,0.00020547,2]
[316392163,1709464241765,-500.0,0.00020547,2]
[316392165,1709464241775,-500.0,0.00020547,2]
[316392167,1709464241785,-500.0,0.00020547,2]
[316392170,1709464241798,-500.0,0.00020547,2]
[316392171,1709464241807,-500.0,0.00020547,2]
[316392173,1709464241816,-500.0,0.00020547,2]
[316392175,1709464241825,-500.0,0.00020547,2]
[316392177,1709464241834,-500.0,0.00020547,2]
[316392179,1709464241843,-500.0,0.00020547,2]
[316392181,1709464241852,-301.49167869,0.00020547,2]
[316392183,1709464241861,-217.02159835,0.00020547,2]
[316392185,1709464241871,-500.0,0.00020547,2]
[316392187,1709464241881,-500.0,0.00020547,2]
[316392189,1709464241890,-500.0,0.00020547,2]
[316392191,1709464241899,-500.0,0.00020547,2]
[316392193,1709464241908,-500.0,0.00020547,2]
[316392195,1709464241918,-500.0,0.00020547,2]
[316392197,1709464241927,-500.0,0.00020547,2]
[316392199,1709464241936,-500.0,0.00020547,2]
[316392201,1709464241946,-290.17876149,0.00020547,2]
[316392203,1709464241955,-500.0,0.00020547,2]
[316392205,1709464241965,-152.29316595,0.00020547,2]
[316392207,1709464241974,-248.54809915,0.00020547,2]
[316392209,1709464241983,-500.0,0.00020547,2]
[316392211,1709464241992,-500.0,0.00020547,2]
[316392213,1709464242002,-1369.57,0.00020547,2]
[316392226,1709464242112,-1369.57,0.00020547,2]
[316392228,1709464242123,-500.0,0.00020547,2]
[316392230,1709464242133,-500.0,0.00020547,2]
[316392232,1709464242142,-500.0,0.00020547,2]
[316392234,1709464242154,-500.0,0.00020547,2]
[316392237,1709464242164,-210.33764513,0.00020547,2]
[316392239,1709464242174,-500.0,0.00020547,2]
[316392241,1709464242184,-500.0,0.00020547,2]
[316392242,1709464242193,-416.57634027,0.00020547,2]
[316392245,1709464242203,-500.0,0.00020547,2]
[316392247,1709464242213,-500.0,0.00020547,2]
[316392248,1709464242224,-500.0,0.00020547,2]
[316392250,1709464242235,-500.0,0.00020547,2]
[316392252,1709464242244,-500.0,0.00020547,2]
[316392254,1709464242254,-500.0,0.00020547,2]
[316392256,1709464242263,-500.0,0.00020547,2]
[316392258,1709464242272,-500.0,0.00020547,2]
[316392260,1709464242281,-500.0,0.00020547,2]
[316392261,1709464242290,-502.36469849,0.00020547,2]
[316392262,1709464242301,-500.0,0.00020547,2]
[316392263,1709464242310,-500.0,0.00020547,2]
[316392264,1709464242319,-253.93,0.00020547,2]
[316392266,1709464242329,-500.0,0.00020547,2]
[316392268,1709464242338,-500.0,0.00020547,2]
[316392270,1709464242348,-500.0,0.00020547,2]
[316392272,1709464242357,-504.45522085,0.00020547,2]
[316392275,1709464242366,-500.0,0.00020547,2]
[316392276,1709464242375,-500.0,0.00020547,2]
[316392279,1709464242384,-500.0,0.00020547,2]
[316392281,1709464242394,-500.0,0.00020547,2]
[316392283,1709464242403,-500.0,0.00020547,2]
[316392285,1709464242412,-501.12349114,0.00020547,2]
[316392287,1709464242421,-308.23751291,0.00020547,2]
[316392288,1709464242431,-500.0,0.00020547,2]
[316392291,1709464242441,-500.0,0.00020547,2]
[316392293,1709464242450,-569.37,0.00020547,2]
[316392294,1709464242459,-500.60820594,0.00020547,2]
[316392297,1709464242468,-500.0,0.00020547,2]
[316392298,1709464242477,-500.0,0.00020547,2]
[316392301,1709464242487,-500.0,0.00020547,2]
[316392303,1709464242496,-155.0,0.00022,2]
[316392304,1709464242506,-163.57116463,0.00022816,2]
[316392306,1709464242515,-500.0,0.00022896,2]
[316392308,1709464242524,-235.83,0.00022896,2]
[316392310,1709464242533,-647.99294883,0.00022896,2]
[316392312,1709464242542,-500.0,0.00022896,2]
[316392314,1709464242551,-500.0,0.00022896,2]
[316392316,1709464242560,-500.0,0.00022896,2]
[316392318,1709464242569,-500.0,0.00022896,2]
[316392320,1709464242578,-500.0,0.00022896,2]
[316392322,1709464242587,-500.0,0.00022896,2]
[316392324,1709464242596,-229.63,0.00022896,2]
[316392326,1709464242606,-500.0,0.00022896,2]
[316392328,1709464242615,-582.38343106,0.00022896,2]
[316392330,1709464242625,-500.0,0.00022896,2]
[316392333,1709464242634,-500.0,0.00022896,2]
[316392334,1709464242643,-500.0,0.00022896,2]
[316392336,1709464242652,-500.0,0.00022896,2]
[316392338,1709464242661,-500.0,0.00022896,2]
[316392341,1709464242672,-299.64415261,0.00022896,2]
[316392343,1709464242682,-48512.21919399,0.00022897,2]
[316392345,1709464242692,-425.63,0.00022905,3]
[316392347,1709464242701,-212.81,0.00022905,3]
[316392349,1709464242710,-638.46,0.00022905,3]
[316392351,1709464242720,-500.0,0.00022915,2]
[316392352,1709464242729,-500.0,0.00022915,2]
[316392355,1709464242739,-500.0,0.00022915,2]
[316392356,1709464242748,-1369.57,0.00022915,2]
[316392358,1709464242758,-500.0,0.00022915,2]
[316392360,1709464242768,-500.0,0.00022915,2]
[316392362,1709464242778,-500.0,0.00022915,2]
[316392364,1709464242787,-500.0,0.00022915,2]
[316392367,1709464242800,-500.0,0.00022915,2]
[316392368,1709464242809,-171.34,0.00022915,2]
[316392371,1709464242819,-500.0,0.00022915,2]
[316392373,1709464242830,-500.0,0.00022915,2]
[316392374,1709464242839,-500.0,0.00022915,2]
[316392376,1709464242848,-500.0,0.00022915,2]
[316392379,1709464242857,-500.0,0.00022915,2]
[316392381,1709464242867,-500.0,0.00022915,2]
[316392382,1709464242877,-618.25053597,0.00022915,2]
[316392384,1709464242886,-500.0,0.00022915,2]
[316392387,1709464242896,-569.37,0.00022915,2]
[316392389,1709464242905,-151.0,0.00022915,2]
[316392391,1709464242914,-500.0,0.00022915,2]
[316392393,1709464242923,-500.0,0.00022915,2]
[316392394,1709464242933,-33300.96317218,0.00022916,5]
[316392396,1709464242943,-13640.85300367,0.00022916,5]
[316392399,1709464242952,-151.0,0.00022916,2]
[316392400,1709464242962,-2907.32134037,0.00022916,5]
[316392402,1709464242971,-151.0,0.00022916,2]
[316392404,1709464242980,-251.22648,0.00022916,2]
[316392406,1709464242989,-500.0,0.00022994,2]
[316392408,1709464243000,-557.88,0.00022995,2]
[316392410,1709464243009,-255.078009,0.00022995,2]
[316392413,1709464243019,-510.25419356,0.00022995,2]
[316392415,1709464243028,-500.0,0.00022995,2]
[316392416,1709464243037,-500.0,0.00022995,2]
[316392418,1709464243047,-544.62175116,0.00022995,2]
[316392420,1709464243056,-500.0,0.00022995,2]
[316392423,1709464243065,-500.0,0.00022995,2]
[316392424,1709464243074,-500.0,0.00022996,2]
[316392427,1709464243083,-500.0,0.00022996,2]
[316392429,1709464243092,-500.0,0.00022996,2]
[316392431,1709464243101,-151.177264,0.00022996,2]
[316392433,1709464243111,-151.0,0.00022996,2]
[316392435,1709464243119,-500.0,0.00022996,2]
[316392437,1709464243129,-529.35964424,0.00022996,2]
[316392439,1709464243138,-390.45,0.00022996,2]
[316392441,1709464243147,-151.0,0.00022996,2]
[316392443,1709464243156,-1369.57,0.00022996,2]
[316392445,1709464243165,-500.0,0.00022996,2]
[316392446,1709464243174,-500.0,0.00022997,2]
[316392448,1709464243185,-500.0,0.00022998,2]
[316392451,1709464243195,-500.0,0.00022998,2]
[316392453,1709464243204,-500.0,0.00022998,2]
[316392455,1709464243214,-151.0,0.00022998,2]
[316392456,1709464243223,-151.0,0.00022998,2]
[316392458,1709464243233,-500.0,0.00022998,2]
[316392460,1709464243243,-1369.57,0.00022998,2]
[316392462,1709464243252,-500.0,0.00022998,2]
[316392464,1709464243262,-500.0,0.00022998,2]
[316392466,1709464243271,-500.0,0.00022998,2]
[316392468,1709464243281,-500.0,0.00022998,2]
[316392470,1709464243290,-569.37,0.00022998,2]
[316392472,1709464243300,-500.0,0.00022998,2]
[316392475,1709464243309,-332.24,0.00022999,2]
[316392477,1709464243318,-500.0,0.00022999,2]
[316392480,1709464243328,-1000.7591524,0.00022999,2]
[316392482,1709464243337,-501.40916798,0.00022999,2]
[316392484,1709464243346,-500.0,0.00022999,2]
[316392486,1709464243356,-1369.57,0.00022999,2]
[316392488,1709464243365,-449.37,0.00022999,2]
[316392490,1709464243374,-500.0,0.00022999,2]
[316392492,1709464243383,-500.0,0.00022999,2]
[316392494,1709464243393,-365.27,0.00022999,2]
[316392496,1709464243402,-500.0,0.00022999,2]
[316392498,1709464243412,-500.0,0.00022999,2]
[316392500,1709464243421,-500.0,0.00022999,2]
[316392501,1709464243431,-184.87751692,0.00022999,2]
[316392502,1709464243440,-500.0,0.00022999,2]
[316392503,1709464243449,-500.0,0.00022999,2]
[316392504,1709464243458,-500.0,0.00022999,2]
[316392505,1709464243467,-569.37,0.00022999,2]
[316392506,1709464243477,-500.0,0.00022999,2]
[316392507,1709464243486,-500.0,0.00022999,2]
[316392508,1709464243495,-500.0,0.00022999,2]
[316392509,1709464243505,-4046.22007613,0.00023,2]
[316392510,1709464243514,-66939.0,0.00023,2]
[316392511,1709464243523,-298.37812569,0.00023,2]
[316392512,1709464243532,-151.0,0.00023,2]
[316392513,1709464243541,-151.0,0.00023,2]
[316392514,1709464243550,-151.32535,0.00023,2]
[316392515,1709464243559,-500.0,0.00023095,2]
[316392516,1709464243568,-500.0,0.00023095,2]
[316392517,1709464243577,-500.0,0.00023095,2]
[316392518,1709464243586,-500.0,0.00023095,2]
[316392519,1709464243595,-569.37,0.00023095,2]
[316392520,1709464243604,-500.0,0.00023095,2]
[316392521,1709464243612,-2390.351605,0.00023097,2]
[316392522,1709464243621,-1000.0,0.00023265,2]
[316392523,1709464243630,-163.57116461,0.00023358,2]
[316392524,1709464243639,-500.0,0.00023381,2]
[316392525,1709464243648,-2390.351605,0.00023382,2]
[316392526,1709464243657,-290.0,0.000235,2]
[316392527,1709464243665,-1000.0,0.00023616,2]
[316392528,1709464243674,-1369.57,0.00023667,2]
[316392529,1709464243684,-2390.351605,0.00023667,2]
[316392530,1709464243693,-2929.85172541,0.00023788,7]
[316392531,1709464243702,-500.0,0.00023852,2]
[316392533,1709464243711,-261.11672735,0.000239,2]
[316392535,1709464243720,-163.57116461,0.000239,2]
[316392537,1709464243729,-500.0,0.00023952,2]
[316392539,1709464243738,-2390.351605,0.00023952,2]
[316392541,1709464243747,-500.0,0.00023996,2]
[316392543,1709464243757,-151.0,0.00023997,2]
[316392545,1709464243765,-500.0,0.00023997,2]
[316392547,1709464243777,-500.0,0.00023997,2]
[316392549,1709464243787,-500.0,0.00023997,2]
[316392551,1709464243799,-500.0,0.00023997,2]
[316392553,1709464243809,-500.0,0.00023997,2]
[316392555,1709464243818,-500.0,0.00023997,2]
[316392557,1709464243829,-500.0,0.00023997,2]
[316392559,1709464243839,-500.0,0.00023997,2]
[316392561,1709464243848,-500.0,0.00023997,2]
[316392563,1709464243858,-500.0,0.00023997,2]
[316392565,1709464243867,-500.0,0.00023997,2]
[316392567,1709464243876,-569.37,0.00023997,2]
[316392569,1709464243886,-569.37,0.00023997,2]
[316392571,1709464243895,-500.0,0.00023997,2]
[316392573,1709464243904,-561.11,0.00023997,2]
[316392575,1709464243912,-500.0,0.00023997,2]
[316392577,1709464243922,-1079.68830364,0.00023998,2]
[316392579,1709464243931,-12535.43892254,0.00023998,2]
[316392581,1709464243941,-1007.42067619,0.00023998,2]
[316392582,1709464243951,-197.1020611,0.00023998,2]
[316392584,1709464243961,-253.41217552,0.00023998,2]
[316392586,1709464243971,-428.46226759,0.00023998,2]
[316392590,1709464243991,-704.24252827,0.00023998,2]
[316392593,1709464244003,-4700.60014085,0.00023998,2]
[316392595,1709464244013,-155.0310062,0.00023998,2]
[316392597,1709464244024,-40093.96958823,0.00023998,2]
[316392599,1709464244034,-500.0,0.00023998,2]
[316392601,1709464244044,-155.00310006,0.00023998,2]
[316392603,1709464244054,-428.4,0.00023998,2]
[316392605,1709464244064,-1369.57,0.00023998,2]
[316392607,1709464244074,-500.0,0.00023998,2]
[316392609,1709464244084,-500.0,0.00023998,2]
[316392611,1709464244095,-500.0,0.00023998,2]
[316392613,1709464244105,-500.0,0.00023998,2]
[316392615,1709464244114,-500.0,0.00023998,2]
[316392617,1709464244124,-628.46,0.00023998,2]
[316392619,1709464244135,-500.0,0.00023998,2]
[316392621,1709464244144,-500.0,0.00023998,2]
[316392623,1709464244156,-500.0,0.00023998,2]
[316392625,1709464244166,-500.0,0.00023998,2]
[316392627,1709464244176,-569.37,0.00023998,2]
[316392629,1709464244186,-569.37,0.00023998,2]
[316392631,1709464244196,-500.0,0.00023998,2]
[316392633,1709464244206,-500.0,0.00023998,2]
[316392635,1709464244217,-20843.89309107,0.00023999,2]
[316392637,1709464244227,-500.0,0.00023999,2]
[316392639,1709464244237,-500.0,0.00023999,2]
[316392641,1709464244247,-1500.0,0.00023999,2]
[316392643,1709464244257,-500.0,0.00023999,2]
[316392645,1709464244267,-485.0,0.00023999,2]
[316392647,1709464244276,-500.0,0.00023999,2]
[316392649,1709464244286,-500.0,0.00023999,2]
[316392651,1709464244295,-500.0,0.00023999,2]
[316392653,1709464244304,-232.53166421,0.00023999,2]
[316392655,1709464244314,-259.82210555,0.00023999,2]
[316392657,1709464244324,-500.0,0.00023999,2]
[316392659,1709464244334,-321.30399158,0.00023999,2]
[316392661,1709464244344,-500.0,0.00023999,2]
[316392663,1709464244353,-500.0,0.00023999,2]
[316392677,1709464244477,-287.11901166,0.00023999,2]
[316392679,1709464244488,-307.12112265,0.00023999,2]
[316392681,1709464244498,-1369.57,0.00023999,2]
[316392683,1709464244507,-1369.57,0.00023999,2]
[316392685,1709464244516,-1369.57,0.00023999,2]
[316392687,1709464244526,-1369.57,0.00023999,2]
[316392689,1709464244535,-1369.57,0.00023999,2]
[316392690,1709464244544,-1369.57,0.00023999,2]
[316392692,1709464244553,-1369.57,0.00023999,2]
[316392694,1709464244563,-1369.57,0.00023999,2]
[316392696,1709464244572,-1369.57,0.00023999,2]
[316392699,1709464244582,-1369.57,0.00023999,2]
[316392700,1709464244592,-1369.57,0.00023999,2]
[316392703,1709464244603,-1369.57,0.00023999,2]
[316392704,1709464244613,-1369.57,0.00023999,2]
[316392706,1709464244622,-1369.57,0.00023999,2]
[316392708,1709464244631,-1369.57,0.00023999,2]
[316392710,1709464244640,-1369.65,0.00023999,2]
[316392712,1709464244650,-500.0,0.00023999,2]
[316392714,1709464244659,-498.23,0.00023999,2]
[316392716,1709464244668,-500.0,0.00023999,2]